bitfinex/quotes_ETHUSD_20240709
["timestamp","ask_amount","ask_price","bid_price","bid_amount"]
[1720516613693,0.33856699,3093.0,3092.5,3.23356]
[1720516613989,0.33856699,3093.0,3092.1,3.23398]
[1720516614401,0.33856699,3093.0,3092.1,3.23399]
[1720516614690,2.3434,3092.9,3092.1,3.23399]
[1720516614894,5.3434,3092.9,3092.1,3.23399]
[1720516615586,5.9115967,3092.9,3092.0,3.2341]
[1720516616489,5.9115967,3092.9,3092.1,3.23404]
[1720516616649,5.9115967,3092.9,3092.0,3.23405]
[1720516616847,5.9115967,3092.9,3092.1,3.23404]
[1720516617786,5.9115967,3092.9,3092.0,3.23407]
[1720516618001,0.62501637,3092.8,3091.7,3.2344]
[1720516618290,3.62501637,3092.8,3091.7,3.23444]
[1720516618789,2.4652,3092.7,3091.3,3.23482]
[1720516618998,1.14502164,3092.6,3091.3,3.23482]
[1720516619195,5.83586564,3092.6,3091.3,3.23482]
[1720516619356,5.83586564,3092.6,3091.2,3.23488]
[1720516619357,5.83586564,3092.6,3091.4,3.23476]
[1720516620421,5.83586564,3092.6,3091.4,0.06468958]
[1720516620605,3.0,3092.6,3091.4,0.06468958]
[1720516620889,3.0,3092.6,3092.0,3.23414]
[1720516621257,2.4652,3092.7,3092.0,3.23414]
[1720516621454,2.4652,3092.7,3091.8,6.46853]
[1720516621681,2.4652,3092.7,3091.8,3.23426]
[1720516622598,3.18082751,3092.7,3091.4,3.23472]
[1720516622757,3.0,3092.6,3091.4,6.46939]
[1720516623576,4.69254379,3092.6,3091.4,3.23467]
[1720516623901,4.02104379,3092.4,3091.1,3.23508]
[1720516624057,1.69254379,3092.3,3091.2,3.23497]
[1720516624257,1.69254379,3092.2,3090.8,3.23532]
[1720516624479,2.4902,3092.0,3090.8,3.23532]
[1720516624685,5.4902,3092.0,3090.8,3.23532]
[1720516624995,5.4902,3092.0,3090.9,3.23528]
[1720516625185,7.18274379,3092.0,3090.8,3.23532]
[1720516626006,5.4902,3092.0,3090.9,3.23528]
[1720516626371,5.4902,3092.0,3091.2,3.23492]
[1720516626579,3.0,3091.9,3091.2,3.23492]
[1720516627008,2.4902,3092.0,3091.0,3.23512]
[1720516627183,0.24902,3091.9,3091.0,3.23512]
[1720516628089,0.24902,3091.9,3090.8,3.2353]
[1720516628291,4.18364565,3092.0,3091.0,3.23514]
[1720516628586,3.0,3091.9,3091.1,3.23508]
[1720516628792,5.4902,3092.0,3091.2,3.23493]
[1720516629076,3.0,3091.9,3091.2,3.23493]
[1720516629272,3.0,3091.9,3091.3,3.23488]
[1720516629701,2.4902,3092.0,3091.3,3.23488]
[1720516630079,2.95828265,3092.0,3091.1,3.23508]
[1720516630284,3.0,3091.9,3091.1,3.23508]
[1720516630485,3.0,3091.9,3091.1,6.4701]
[1720516630721,3.0,3091.9,3091.1,3.23502]
[1720516631487,5.4902,3092.0,3091.1,3.23502]
[1720516632026,2.4902,3092.0,3091.1,3.23502]
[1720516632198,2.4902,3092.0,3091.2,3.23492]
[1720516635338,2.4902,3092.0,3091.1,3.23502]
[1720516635559,3.03922,3092.0,3091.1,3.23502]
[1720516635840,3.0,3091.9,3091.1,3.23502]
[1720516636532,3.0,3091.9,3091.2,3.23492]
[1720516637142,2.4902,3092.0,3091.2,3.23492]
[1720516637425,3.0,3092.1,3091.3,3.23486]
[1720516637626,5.03168699,3092.3,3091.3,3.23486]
[1720516638200,2.03168699,3092.3,3091.6,3.2345]
[1720516638401,0.33857743,3092.3,3091.6,3.2345]
[1720516638657,2.3991,3092.4,3091.5,3.23459]
[1720516638658,2.3991,3092.4,3091.7,3.23445]
[1720516639652,2.3991,3092.4,3091.3,5.24282]
[1720516639811,0.23991,3092.3,3091.3,3.23483]
[1720516640006,0.23991,3092.3,3091.1,3.23503]
[1720516640007,0.23991,3092.3,3091.2,3.23492]
[1720516640247,1.93301956,3092.3,3091.2,3.23492]
[1720516640461,1.93301956,3092.3,3090.9,2.008]
[1720516640462,2.3835,3092.1,3090.9,3.23524]
[1720516640610,5.3835,3092.1,3091.0,3.23519]
[1720516640947,5.3835,3092.1,3091.1,3.23507]
[1720516641155,5.3835,3092.1,3090.9,3.23522]
[1720516641445,0.70766096,3092.0,3090.7,5.54894]
[1720516641657,0.70766096,3092.0,3090.7,3.23544]
[1720516641658,5.40077052,3092.0,3090.7,3.23544]
[1720516641807,1.69310956,3091.9,3090.7,3.23544]
[1720516642011,0.54007705,3091.8,3090.7,3.23544]
[1720516642720,2.23227901,3091.8,3090.7,3.23544]
[1720516642906,5.23227901,3091.8,3090.7,3.23544]
[1720516643115,5.23227901,3091.8,3090.8,3.23538]
[1720516643315,0.54007705,3091.8,3090.8,3.23538]
[1720516643515,0.5232279,3091.7,3090.8,3.23538]
[1720516644151,2.4273,3091.6,3090.5,2.008]
[1720516644375,2.4815,3091.4,3089.7,10.65439]
[1720516644557,4.17370196,3091.3,3089.7,3.23649]
[1720516644756,1.69220196,3091.1,3089.7,3.23649]
[1720516645020,1.69220196,3090.9,3089.6,3.23659]
[1720516645221,2.16142216,3090.9,3089.6,3.23659]
[1720516645467,2.16142216,3090.9,3089.7,3.23653]
[1720516645957,2.16142216,3090.9,3089.7,3.23649]
[1720516645958,2.15934565,3090.9,3089.7,3.23649]
[1720516646321,2.15940216,3090.9,3089.7,3.23649]
[1720516646520,0.4692202,3090.9,3089.7,3.23649]
[1720516646957,0.4692202,3090.9,3089.5,5.6889]
[1720516646958,2.49364022,3090.8,3089.3,2.008]
[1720516647124,5.2777,3090.8,3089.4,6.47359]
[1720516648275,5.2777,3090.8,3089.5,3.23675]
[1720516648441,5.2777,3090.8,3089.6,6.47316]
[1720516648789,2.2777,3090.8,3089.7,3.23649]
[1720516649480,2.50547,3090.8,3089.5,3.23676]
[1720516649785,3.0,3090.7,3089.5,3.23676]
[1720516649954,3.0,3090.7,3089.5,6.47347]
[1720516650283,3.0,3090.7,3089.3,5.2449]
[1720516650484,3.0,3090.7,3089.4,3.78686]
[1720516650697,3.550547,3090.7,3089.4,0.55]
[1720516651605,3.550547,3090.7,3089.4,3.7868]
[1720516652754,3.550547,3090.7,3089.5,3.23676]
[1720516653192,3.550547,3090.7,3089.4,3.78687]
[1720516654426,3.550547,3090.7,3089.5,3.23671]
[1720516655396,3.0,3090.7,3089.7,3.23653]
[1720516655706,2.2777,3090.8,3089.8,0.06471915]
[1720516655902,2.2777,3090.8,3090.0,3.23619]
[1720516656061,0.73698829,3091.5,3090.1,3.30084222]
[1720516656062,2.3852,3091.4,3090.1,3.30084222]
[1720516656258,2.3852,3091.4,3090.2,3.23601]
[1720516656482,2.3852,3091.4,3090.4,3.2358]
[1720516656669,2.3852,3091.4,3090.5,0.06470339]
[1720516656873,2.3852,3091.4,3090.6,3.85030335]
[1720516657085,2.3852,3091.4,3090.6,3.30030335]
[1720516657301,2.3852,3091.4,3090.7,3.23548]
[1720516658229,2.3852,3091.4,3090.4,3.23578]
[1720516658407,0.23852,3091.3,3090.3,0.55]
[1720516658703,2.3852,3091.4,3090.4,3.23576]
[1720516659103,2.3852,3091.4,3090.5,3.2357]
[1720516659307,9.8452,3091.8,3090.7,3.23542]
[1720516659505,9.8452,3091.8,3090.8,0.06469868]
[1720516659684,2.4852,3091.8,3090.8,0.06469868]
[1720516661803,2.73372,3091.8,3090.2,0.55]
[1720516662010,3.0,3091.7,3090.4,3.23574]
[1720516664218,3.0,3091.7,3090.5,3.23571]
[1720516665738,3.0,3091.7,3090.5,6.47138]
[1720516665902,3.0,3091.7,3090.3,6.47172]
[1720516666109,2.4276,3091.6,3090.4,0.55]
[1720516666316,2.4276,3091.6,3090.3,3.23591]
[1720516667808,2.4276,3091.6,3090.2,0.55]
[1720516668007,2.3449,3091.5,3090.0,3.23624]
[1720516668207,2.3449,3091.5,3089.9,3.2363]
[1720516668208,2.489,3091.4,3089.9,3.2363]
[1720516668400,5.489,3091.4,3089.9,3.2363]
[1720516668810,5.489,3091.4,3090.1,5.24407]
[1720516668995,5.489,3091.4,3090.4,3.2358]
[1720516669226,5.489,3091.4,3090.5,3.30034273]
[1720516669227,2.489,3091.4,3090.5,3.30034273]
[1720516669557,2.489,3091.4,3090.5,3.23564]
[1720516670214,2.489,3091.4,3090.4,3.23572]
[1720516670418,3.0379,3091.4,3090.3,3.23586]
[1720516670738,3.0,3091.3,3090.3,3.23586]
[1720516671242,2.489,3091.4,3090.3,3.23586]
[1720516675742,5.489,3091.4,3090.3,3.23586]
[1720516676074,2.4893,3091.3,3090.1,5.24412]
[1720516676276,5.4893,3091.3,3090.1,6.47218]
[1720516676423,6.03823,3091.3,3090.1,6.47218]
[1720516677563,6.03823,3091.3,3090.2,3.23602]
[1720516677925,6.03823,3091.3,3090.3,3.23584]
[1720516678127,5.4893,3091.3,3090.3,3.23584]
[1720516678328,2.4893,3091.3,3090.4,3.23582]
[1720516679972,2.4893,3091.3,3090.2,3.23595]
[1720516680137,2.4893,3091.3,3090.1,6.47214]
[1720516680472,2.4893,3091.3,3090.2,3.23597]
[1720516680627,3.20730219,3091.3,3090.1,3.23607]
[1720516680830,3.20730219,3091.3,3090.1,6.47213]
[1720516681377,4.89989763,3091.3,3090.2,3.23602]
[1720516681660,3.20730219,3091.3,3090.2,3.23602]
[1720516681868,3.20730219,3091.3,3090.3,3.23586]
[1720516682069,3.20730219,3091.3,3090.4,3.23582]
[1720516684530,3.20730219,3091.3,3090.2,3.23594]
[1720516684737,0.72443239,3091.2,3090.2,3.23594]
[1720516685135,2.41863854,3091.2,3090.2,3.23594]
[1720516685433,0.72443239,3091.2,3090.2,3.23594]
[1720516685642,2.41856439,3091.2,3090.2,3.23594]
[1720516686438,1.694132,3091.1,3090.2,3.23594]
[1720516687372,0.72443239,3091.2,3090.2,6.47191]
[1720516687539,1.6959454,3091.2,3090.3,3.23591]
[1720516688401,1.6959454,3091.1,3090.3,3.23591]
[1720516688604,2.4893,3091.3,3090.3,3.23591]
[1720516688605,1.6959454,3091.2,3090.3,3.23591]
[1720516688897,1.6959454,3091.1,3090.3,3.23591]
[1720516689107,1.6959454,3091.1,3090.2,6.47191]
[1720516689406,1.6959454,3091.1,3090.3,3.23588]
[1720516689561,1.6959454,3091.2,3090.3,3.23588]
[1720516689763,1.6959454,3091.2,3090.1,3.23613]
[1720516689965,1.6959454,3091.1,3090.1,3.23613]
[1720516690165,1.6959454,3091.0,3090.2,3.23601]
[1720516690473,1.6959454,3091.1,3090.3,3.23592]
[1720516690709,2.94174345,3091.3,3090.3,3.23592]
[1720516691007,1.69634533,3091.2,3090.3,3.23592]
[1720516692473,1.69634533,3091.2,3090.4,3.23582]
[1720516693261,4.63808878,3091.3,3090.4,3.23582]
[1720516693470,1.69634533,3091.2,3090.4,3.23582]
[1720516694071,1.6960315,3091.1,3090.2,3.23594]
[1720516694478,0.29417435,3091.2,3090.2,3.23594]
[1720516694698,1.69661022,3091.1,3090.3,3.23591]
[1720516694968,1.69661022,3091.0,3090.3,3.23591]
[1720516696205,1.69661022,3091.0,3090.1,3.23607]
[1720516696528,1.69661022,3090.9,3090.2,3.23598]
[1720516696664,1.69661022,3091.0,3090.2,3.23598]
[1720516697028,1.69661022,3090.9,3090.2,3.23598]
[1720516697186,1.69661022,3090.9,3089.7,2.008]
[1720516697535,1.69652223,3091.3,3091.1,3.23507]
[1720516697686,1.69652223,3091.6,3091.1,6.47008]
[1720516697869,7.36,3092.0,3091.1,6.47008]
[1720516697870,1.69652223,3091.8,3091.1,6.47008]
[1720516698082,1.69652223,3091.9,3091.2,3.23498]
[1720516699680,1.69652223,3091.9,3091.3,3.23488]
[1720516699911,9.05652223,3092.0,3091.3,3.23488]
[1720516700116,3.98062223,3092.1,3091.3,3.23488]
[1720516700288,3.0,3092.0,3091.3,3.23488]
[1720516701123,3.0,3092.0,3091.3,6.46976]
[1720516701420,3.0,3092.0,3091.3,3.23488]
[1720516701622,4.69607534,3092.0,3091.3,3.23488]
[1720516701981,4.69607534,3092.0,3091.3,6.46971]
[1720516702205,3.0,3092.0,3091.3,6.46971]
[1720516702415,3.0,3092.0,3091.4,3.23476]
[1720516703023,1.69607534,3092.2,3091.4,3.23476]
[1720516703188,2.39627287,3092.2,3091.4,3.23476]
[1720516703585,1.69607534,3092.2,3091.7,3.23437]
[1720516703925,4.69476166,3092.3,3091.7,3.23437]
[1720516704224,3.0,3092.3,3091.7,3.23437]
[1720516704389,1.69428534,3092.3,3091.7,3.23437]
[1720516704590,4.69428534,3092.3,3091.7,3.23437]
[1720516705103,2.3059,3092.4,3091.8,3.23434]
[1720516705504,1.69428534,3092.7,3091.9,0.06468185]
[1720516705827,1.69428534,3093.3,3092.8,3.23329]
[1720516706001,3.99038534,3093.5,3092.8,3.23329]
[1720516706207,3.26171,3093.5,3092.8,3.23329]
[1720516706631,2.2961,3093.5,3092.8,3.23329]
[1720516708129,7.36,3093.7,3092.8,3.29795003]
[1720516708432,7.36,3093.7,3092.9,3.23318]
[1720516708604,7.36,3093.7,3093.0,3.23306]
[1720516709681,7.36,3093.7,3093.0,0.0646565]
[1720516709887,3.0,3094.1,3093.4,3.23258]
[1720516710123,3.0,3094.0,3093.6,3.23241]
[1720516710286,2.2663,3094.2,3093.6,3.23241]
[1720516710287,2.2663,3094.2,3093.7,3.23235]
[1720516710487,7.36,3094.4,3093.8,3.23225]
[1720516711293,7.36,3094.4,3093.8,6.46445]
[1720516711524,7.36,3094.4,3093.9,3.23214]
[1720516711688,7.36,3094.9,3094.0,3.23205]
[1720516711888,1.49293,3094.8,3093.8,3.2322]
[1720516712126,2.4393,3095.0,3093.8,3.2322]
[1720516712334,2.4393,3095.0,3093.8,6.46439]
[1720516712635,2.4393,3095.0,3093.9,3.23215]
[1720516712801,2.4393,3095.0,3094.0,3.23201]
[1720516712992,0.24393,3094.9,3094.0,3.23201]
[1720516713192,3.24393,3094.9,3094.0,3.23201]
[1720516713637,3.24393,3094.9,3093.8,3.23219]
[1720516714194,9.306,3095.4,3093.6,5.69104]
[1720516714195,9.6168,3095.4,3093.9,2.008]
[1720516714516,9.6168,3095.4,3094.1,3.23195]
[1720516715035,9.6168,3095.4,3093.9,2.008]
[1720516715338,2.427,3095.3,3093.8,3.2322]
[1720516715496,1.1733,3095.2,3093.8,6.46439]
[1720516715701,4.1733,3095.2,3093.8,3.23219]
[1720516716649,4.1733,3095.2,3093.9,3.23216]
[1720516716800,0.66003,3095.1,3093.9,3.23216]
[1720516717136,0.66003,3095.1,3093.9,6.46426]
[1720516717350,0.66003,3095.1,3094.0,3.23203]
[1720516719535,0.66003,3095.1,3093.7,3.2323]
[1720516719839,2.3049,3095.1,3093.9,3.23216]
[1720516720047,2.3049,3095.1,3093.9,3.2321]
[1720516720344,2.3049,3095.1,3094.0,3.23202]
[1720516720842,2.3049,3095.1,3093.8,3.23225]
[1720516721054,2.4952,3094.9,3093.5,2.008]
[1720516721341,2.4952,3094.9,3093.2,8.73827]
[1720516721508,2.4952,3094.8,3093.3,3.23275]
[1720516721703,1.946,3094.6,3093.1,2.008]
[1720516721900,1.946,3094.4,3092.7,2.008]
[1720516722100,4.9178,3094.3,3092.8,3.2333]
[1720516722346,1.946,3094.1,3092.4,2.4089]
[1720516722514,1.946,3094.1,3092.5,3.23359]
[1720516722838,2.7254,3094.0,3092.5,3.23359]
[1720516723224,3.0,3093.9,3092.5,3.23359]
[1720516724606,3.0,3093.9,3092.6,3.23352]
[1720516725111,3.0,3093.9,3092.8,3.23326]
[1720516725315,0.7794,3094.0,3092.8,3.23326]
[1720516725627,3.0,3094.1,3093.0,3.2331]
[1720516725831,5.436,3094.2,3093.0,3.2331]
[1720516728022,5.436,3094.2,3093.1,3.29759596]
[1720516728335,5.436,3094.2,3093.0,3.23303]
[1720516728538,0.59718,3094.1,3093.0,3.23303]
[1720516728842,3.59718,3094.1,3093.0,3.23303]
[1720516729021,3.59718,3094.1,3093.1,3.23298]
[1720516729642,3.59718,3094.1,3092.7,5.24136]
[1720516729807,3.59718,3094.1,3092.7,8.47467]
[1720516730007,0.603318,3094.0,3092.8,3.23331]
[1720516730741,0.603318,3094.0,3092.9,3.23319]
[1720516731114,0.603318,3094.0,3092.9,6.46638]
[1720516731441,0.603318,3094.0,3092.9,3.23315]
[1720516731655,0.603318,3094.0,3093.0,3.23309]
[1720516732325,0.603318,3094.0,3092.8,3.23322]
[1720516732543,0.603318,3094.0,3092.7,8.47468]
[1720516732860,0.3603318,3093.9,3092.8,3.23328]
[1720516733019,0.3603318,3093.9,3092.9,3.2332]
[1720516733422,0.3603318,3093.9,3092.7,5.24132]
[1720516733734,0.33852968,3093.8,3092.8,3.23331]
[1720516733931,0.33852968,3093.8,3092.8,6.46652]
[1720516734132,0.33852968,3093.8,3092.9,3.2332]
[1720516734863,0.33852968,3093.8,3092.8,3.2333]
[1720516735020,0.33852968,3093.8,3092.8,3.23324]
[1720516736035,0.33852968,3093.8,3092.8,6.4665]
[1720516736237,0.33852968,3093.8,3092.9,3.2332]
[1720516737961,0.33852968,3093.8,3092.8,3.23331]
[1720516738260,0.33852968,3093.8,3092.9,3.2332]
[1720516740076,2.3925,3093.7,3092.7,2.008]
[1720516740229,2.3925,3093.7,3092.7,5.24134]
[1720516740578,0.33852968,3093.8,3092.8,2.54435607]
[1720516740737,0.33852968,3093.8,3093.4,3.23267]
[1720516741565,0.33852968,3093.8,3093.4,3.23263]
[1720516742444,0.33852968,3093.8,3093.0,3.23305]
[1720516742831,0.33852968,3093.8,3093.0,6.46605]
[1720516743026,0.33852968,3093.8,3093.1,3.23299]
[1720516743771,0.33852968,3093.8,3093.0,3.2331]
[1720516743956,0.33852968,3093.8,3093.0,6.46614]
[1720516744159,2.4502,3093.7,3093.1,3.23299]
[1720516744678,2.4502,3093.7,3093.1,6.4659]
[1720516744898,2.4502,3093.7,3093.1,3.23291]
[1720516745689,2.4502,3093.7,3093.1,6.46584]
[1720516745854,2.4502,3093.7,3093.1,3.23291]
[1720516746204,2.4502,3093.7,3092.9,3.23313]
[1720516746408,2.72907297,3093.7,3092.7,3.23336]
[1720516747461,2.72907297,3093.7,3092.8,3.23331]
[1720516747865,2.72907297,3093.7,3092.9,3.23318]
[1720516748696,2.72907297,3093.7,3092.9,6.46632]
[1720516748895,2.72907297,3093.7,3092.9,3.23314]
[1720516749491,2.4502,3093.7,3092.9,6.46628]
[1720516750294,2.4502,3093.7,3092.9,3.23314]
[1720516750792,2.4502,3093.7,3092.9,3.2331]
[1720516752572,2.4502,3093.7,3092.9,6.46624]
[1720516753412,2.4502,3093.7,3092.7,3.23335]
[1720516753599,2.72907297,3093.7,3092.9,3.2332]
[1720516754282,2.72907297,3093.7,3092.9,6.4664]
[1720516754869,2.4502,3093.7,3093.1,3.23297]
[1720516755111,0.33852968,3093.8,3093.3,3.23276]
[1720516755284,0.33852968,3093.8,3093.7,3.23237]
[1720516755613,0.33852968,3093.8,3093.6,3.23246]
[1720516755614,7.36,3094.3,3093.8,3.23224]
[1720516755771,2.2816,3094.4,3093.6,3.23246]
[1720516756110,0.33841493,3094.2,3093.6,6.46488]
[1720516756285,0.33841493,3094.2,3093.8,3.23226]
[1720516756486,0.33841493,3094.2,3093.7,3.23229]
[1720516756812,0.33841493,3094.2,3093.5,3.23249]
[1720516757910,0.33841493,3094.2,3093.6,3.23247]
[1720516761116,0.33841493,3094.2,3093.6,0.06464472]
[1720516761287,0.33841493,3094.2,3093.9,3.2321]
[1720516761697,0.33841493,3094.2,3093.9,6.46416]
[1720516761885,11.53483433,3094.8,3094.0,3.23202]
[1720516762097,0.33844598,3094.6,3094.0,3.23202]
[1720516762779,0.33844598,3094.6,3094.0,3.23198]
[1720516762976,0.33844598,3094.6,3093.7,0.06463486]
[1720516762977,0.33844598,3094.6,3094.1,0.0646346]
[1720516763210,0.33844598,3094.6,3094.3,3.23168]
[1720516763559,9.8404,3094.8,3094.3,3.23168]
[1720516763560,7.36,3094.8,3094.4,3.23163]
[1720516763709,7.36,3094.8,3094.4,3.23157]
[1720516763909,2.4012,3095.2,3094.4,3.23157]
[1720516764285,0.33840442,3095.1,3094.6,3.23137]
[1720516764505,0.33840442,3095.1,3094.7,3.2313]
[1720516765616,0.33840442,3095.1,3094.8,3.23122]
[1720516766002,0.33840442,3095.1,3094.8,6.46236]
[1720516766202,9.05252139,3095.7,3094.9,3.2311]
[1720516766419,1.15018214,3095.6,3095.0,3.23093]
[1720516766718,0.33839994,3095.5,3095.0,3.23093]
[1720516767296,0.33839994,3095.5,3094.4,2.008]
[1720516767499,0.33839994,3095.5,3094.7,3.23131]
[1720516767807,1.22325815,3095.5,3094.6,3.23133]
[1720516768121,2.2848,3095.4,3094.7,3.23132]
[1720516769419,2.2848,3095.4,3094.8,0.06461918]
[1720516769620,0.33839994,3095.5,3095.2,3.23074]
[1720516769985,7.36,3096.0,3095.3,3.29530993]
[1720516770199,7.36,3096.0,3095.3,3.2307]
[1720516770684,7.36,3096.0,3095.2,3.23078]
[1720516770894,8.53053003,3096.0,3095.2,3.23078]
[1720516771324,8.53053003,3096.0,3095.2,3.23074]
[1720516771497,8.53053003,3096.0,3095.0,5.23896]
[1720516771692,2.3128,3095.9,3094.8,3.23117]
[1720516771928,5.3128,3095.9,3094.8,3.23117]
[1720516772100,1.384333,3095.8,3094.8,3.23117]
[1720516772298,2.3128,3095.7,3094.6,2.008]
[1720516772497,2.3128,3095.7,3094.7,3.23132]
[1720516772983,2.3128,3095.7,3094.6,5.23941]
[1720516773209,2.3128,3095.7,3094.5,3.23153]
[1720516773411,0.3697133,3095.6,3094.5,3.23147]
[1720516774513,0.3697133,3095.6,3094.6,3.23137]
[1720516775390,2.3534,3095.5,3094.2,2.008]
[1720516775587,2.3534,3095.5,3094.6,3.23141]
[1720516775820,2.62571133,3095.5,3094.6,3.23141]
[1720516776593,2.3534,3095.5,3094.7,3.23126]
[1720516777015,2.3534,3095.5,3094.3,3.23171]
[1720516777202,2.3534,3095.5,3094.4,3.0]
[1720516777809,2.3534,3095.5,3094.4,6.23161]
[1720516778326,2.3534,3095.5,3094.4,3.0]
[1720516778560,2.3534,3095.5,3094.8,3.2312]
[1720516779199,2.3534,3095.5,3094.7,3.23131]
[1720516779533,2.3534,3095.5,3094.6,2.008]
[1720516779534,2.58874,3095.5,3094.6,2.008]
[1720516780027,2.58874,3095.5,3094.4,3.2316]
[1720516780531,2.58874,3095.5,3094.1,3.23195]
[1720516780532,2.2669,3095.3,3094.1,3.23195]
[1720516780739,2.79359,3095.2,3094.1,3.23195]
[1720516780937,2.79359,3095.2,3094.2,3.23183]
[1720516782513,2.79359,3095.2,3094.3,3.23174]
[1720516783650,2.2669,3095.2,3094.2,2.008]
[1720516784153,2.2669,3095.2,3094.2,5.23983]
[1720516784317,2.2669,3095.2,3094.2,5.23979]
[1720516784651,2.2669,3095.2,3094.2,2.008]
[1720516784854,2.3089,3095.0,3093.9,3.23216]
[1720516785059,2.3089,3095.0,3093.8,5.24025]
[1720516785219,5.3089,3095.0,3093.8,5.24021]
[1720516785419,1.946,3094.9,3093.8,2.008]
[1720516785653,1.946,3094.9,3092.9,3.02852419]
[1720516785654,2.2692,3094.8,3093.5,3.23256]
[1720516785856,0.72152,3094.7,3093.5,3.23256]
[1720516786160,3.0,3094.7,3093.5,3.23256]
[1720516786334,2.2692,3094.8,3093.5,3.23256]
[1720516787055,5.2692,3094.8,3093.9,3.23216]
[1720516787756,2.2692,3094.8,3093.9,3.23216]
[1720516788062,0.22692,3094.7,3093.9,3.23216]
[1720516788735,0.22692,3094.7,3093.9,3.23208]
[1720516788934,0.22692,3094.7,3093.8,2.008]
[1720516789256,2.4711,3094.6,3093.8,2.008]
[1720516792245,2.4711,3094.6,3093.7,3.23233]
[1720516792659,2.4711,3094.6,3093.9,3.23213]
[1720516792952,2.4711,3094.6,3093.9,6.4642]
[1720516793520,2.4711,3094.6,3094.0,3.23205]
[1720516798362,2.71821,3094.6,3093.7,3.23231]
[1720516798967,2.71821,3094.6,3093.7,6.46462]
[1720516799268,3.0,3094.5,3093.5,3.23251]
[1720516799464,2.76298415,3094.4,3093.5,3.23251]
[1720516800533,2.76298415,3094.4,3093.6,3.23247]
[1720516800733,2.76298415,3094.4,3093.4,5.24063]
[1720516800929,2.2692,3094.4,3093.8,3.23221]
[1720516801567,2.2692,3094.4,3093.9,6.46428]
[1720516801753,2.2692,3094.4,3093.9,3.23211]
[1720516801959,2.4423,3094.8,3094.1,3.23194]
[1720516803976,2.4423,3094.8,3094.1,6.46383]
[1720516804477,2.4423,3094.8,3094.1,3.23189]
[1720516804849,2.4423,3094.8,3094.1,3.23188]
[1720516805055,2.4423,3094.8,3094.3,3.23174]
[1720516805374,2.4423,3094.8,3094.1,6.46374]
[1720516805547,2.4423,3094.8,3094.1,3.23186]
[1720516805738,2.4423,3094.8,3094.2,3.23178]
[1720516805939,2.4423,3094.8,3093.9,3.2321]
[1720516806364,2.4423,3094.8,3094.1,3.2319]
[1720516806565,3.15585372,3094.8,3093.8,2.008]
[1720516806787,1.69323722,3094.6,3093.6,3.23243]
[1720516806949,2.4991,3094.4,3093.1,3.23292]
[1720516807153,2.4991,3094.2,3093.4,3.23268]
[1720516807372,2.4991,3094.2,3093.1,3.23299]
[1720516807554,2.4991,3094.2,3093.3,3.23272]
[1720516808103,2.4991,3094.2,3093.1,3.23289]
[1720516808377,2.4991,3094.2,3093.2,3.23288]
[1720516808537,2.91833372,3094.2,3093.3,3.23276]
[1720516809344,2.4991,3094.2,3093.3,6.46548]
[1720516809788,2.4991,3094.2,3093.3,6.46545]
[1720516809987,2.4991,3094.2,3093.3,3.23272]
[1720516810893,2.428,3094.0,3092.8,3.0]
[1720516811088,2.428,3093.8,3092.7,3.23335]
[1720516811388,2.428,3093.8,3092.8,3.23328]
[1720516811389,4.12150473,3093.8,3092.8,3.23328]
[1720516811550,2.428,3093.8,3092.5,5.24156]
[1720516811749,7.12150473,3093.8,3092.6,3.23343]
[1720516811955,7.12150473,3093.8,3092.5,5.24156]
[1720516811956,0.2428,3093.7,3092.7,3.2334]
[1720516812151,0.2428,3093.7,3092.7,3.23335]
[1720516812349,0.2428,3093.7,3092.8,3.23327]
[1720516814896,0.2428,3093.7,3092.9,3.23318]
[1720516815054,5.428,3093.8,3093.1,3.23294]
[1720516815256,2.428,3093.8,3093.0,3.23301]
[1720516815450,2.428,3093.8,3093.1,3.23298]
[1720516816085,2.428,3093.8,3093.2,3.23288]
[1720516816957,2.428,3093.8,3093.1,3.23299]
[1720516817493,2.428,3093.8,3092.9,5.24117]
[1720516817667,2.6708,3093.8,3092.9,2.008]
[1720516818396,2.6708,3093.8,3092.5,3.23357]
[1720516818397,2.6708,3093.8,3092.5,5.24157]
[1720516818699,2.2898,3093.6,3092.6,3.23349]
[1720516819801,2.407,3093.5,3092.1,5.24196]
[1720516820108,5.21308,3093.7,3092.1,5.24196]
[1720516820109,2.279,3093.3,3092.1,5.24196]
[1720516820608,2.279,3093.3,3092.1,2.008]
[1720516820812,2.3013,3093.1,3092.1,2.008]
[1720516821320,2.3013,3093.0,3091.8,3.23434]
[1720516821468,2.4068,3092.9,3091.7,2.008]
[1720516821669,2.4068,3092.9,3091.1,2.4195]
[1720516821670,2.4068,3092.8,3091.4,3.2347]
[1720516821869,2.4068,3092.7,3091.3,3.23479]
[1720516822093,0.48136,3092.6,3091.3,6.4696]
[1720516822374,3.48136,3092.6,3091.3,6.4696]
[1720516822571,3.48136,3092.6,3091.3,3.23479]
[1720516822767,2.4007,3092.5,3091.1,5.24302]
[1720516822969,2.989516,3092.5,3091.2,3.0]
[1720516823200,2.989516,3092.5,3091.2,6.23498]
[1720516823719,2.989516,3092.5,3091.1,6.47005]
[1720516823909,3.0,3092.4,3091.1,6.47005]
[1720516824113,0.5989516,3092.3,3091.1,6.47005]
[1720516825045,2.4007,3092.2,3091.0,2.008]
[1720516825322,2.4007,3092.2,3090.9,3.23521]
[1720516825323,2.4267,3092.1,3090.9,3.23521]
[1720516825520,0.54267,3092.0,3090.9,3.23521]